[Event "Belgrade Spring Open 2021"]
[Site "Belgrade"]
[Date "2021.04.06"]
[Round "6.5"]
[White "Milosevic, Milos"]
[Black "Potpara, Nikola"]
[Result "1/2-1/2"]
[ECO "B30"]
[WhiteElo "2334"]
[BlackElo "2370"]
[Annotator "ChessBase"]
[PlyCount "51"]
[EventDate "2021.04.02"]
[EventType "swiss"]
[EventCountry "SRB"]
[SourceTitle "playchess.com"]
[Source "ChessBase"]
[SourceQuality "1"]
[TimeControl "5400+30"]

1. e4 {[%emt 0:00:00]} c5 {[%emt 0:04:43]} 2. Nc3 {[%emt 0:00:00]} Nc6 {[%emt 0:01:05]} 3. Bb5 {[%emt 0:00:00]} Nd4 {[%emt 0:00:45]} 4. Nf3 {[%emt 0:00:00]} e6 {[%emt 0:00:10]} 5. O-O {[%emt 0:00:00]} a6 {[%emt 0:00:58]} 6. Bd3 {[%emt 0:00:00]} Nc6 {[%emt 0:00:51]} 7. Nd5 {[%emt 0:00:00]} d6 {[%emt 0:01:49]} 8. Ne3 {[%emt 0:00:44]} Nf6 {[%emt 0:00:54]} 9. c3 {[%emt 0:00:36]} d5 {[%emt 0:04:01]} 10. exd5 {[%emt 0:01:42]} Nxd5 {[%emt 0:00:06]} 11. Nxd5 {[%emt 0:01:03]} exd5 {[%emt 0:05:07]} 12. Bc2 {[%emt 0:04:59]} Bg4 {[%emt 0:09:22]} 13. h3 {[%emt 0:03:34]} Bh5 {[%emt 0:00:10]} 14. d4 {[%emt 0:10:34]} cxd4 {[%emt 0:05:07]} 15. g4 {[%emt 0:01:21]} Bg6 {[%emt 0:00:15]} 16. Nxd4 {[%emt 0:07:17]} Be7 {[%emt 0:14:00]} 17. Nf5 {[%emt 0:01:26]} O-O {[%emt 0:03:33]} 18. Be3 {[%emt 0:01:31]} Bf6 {[%emt 0:01:46]} 19. Qf3 {[%emt 0:09:32]} Ne5 {[%emt 0:08:21]} 20. Qg2 {[%emt 0:01:04]} Bxf5 {[%emt 0:11:01]} 21. Bxf5 {[%emt 0:00:37]} Nc4 {[%emt 0:00:38]} 22. Bc5 {[%emt 0:01:28]} Re8 {[%emt 0:00:05]} 23. Rad1 {[%emt 0:03:42]} Nxb2 {[%emt 0:03:48]} 24. Rxd5 {[%emt 0:00:06]} Qc7 {[%emt 0:00:09]} 25. Qf3 {[%emt 0:27:53]} Rad8 {[%emt 0:14:35]} 26. Bxh7+ {[%emt 0:06:15]} 1/2-1/2

[Event "Belgrade Spring Open 2021"]
[Site "Belgrade"]
[Date "2021.04.06"]
[Round "6.6"]
[White "Abramovic, Bosko"]
[Black "Lajthajm, Borko"]
[Result "1-0"]
[ECO "E65"]
[WhiteElo "2333"]
[BlackElo "2359"]
[Annotator "ChessBase"]
[PlyCount "105"]
[EventDate "2021.04.02"]
[EventType "swiss"]
[EventCountry "SRB"]
[SourceTitle "playchess.com"]
[Source "ChessBase"]
[SourceQuality "1"]
[TimeControl "5400+30"]

1. Nf3 {[%emt 0:00:00]} c5 {[%emt 0:22:29]} 2. g3 {[%emt 0:00:08]} Nf6 {[%emt 0:00:16]} 3. Bg2 {[%emt 0:00:13]} g6 {[%emt 0:00:20]} 4. O-O {[%emt 0:01:06]} Bg7 {[%emt 0:00:04]} 5. c4 {[%emt 0:00:23]} O-O {[%emt 0:00:35]} 6. d4 {[%emt 0:00:42]} Na6 {[%emt 0:00:19]} 7. Nc3 {[%emt 0:00:21]} d6 {[%emt 0:00:08]} 8. b3 {[%emt 0:00:17]} Bg4 {[%emt 0:00:30]} 9. Bb2 {[%emt 0:00:16]} Qc8 {[%emt 0:00:17]} 10. Qd2 {[%emt 0:00:52]} Bh3 {[%emt 0:01:13]} 11. e4 {[%emt 0:04:34]} cxd4 {[%emt 0:00:21]} 12. Nxd4 {[%emt 0:00:07]} Bxg2 {[%emt 0:01:10]} 13. Kxg2 {[%emt 0:00:06]} Nc5 {[%emt 0:00:32]} 14. Rfe1 {[%emt 0:01:35]} a6 {[%emt 0:01:08]} 15. f3 {[%emt 0:00:15]} Rd8 {[%emt 0:00:38]} 16. Rac1 {[%emt 0:18:11]} Qd7 {[%emt 0:02:00]} 17. Qe2 {[%emt 0:00:41]} Rdb8 {[%emt 0:01:33]} 18. Red1 {[%emt 0:03:05]} Qe8 {[%emt 0:03:49]} 19. Nc2 {[%emt 0:03:18]} Rc8 {[%emt 0:02:46]} 20. Ne3 {[%emt 0:00:10]} b5 {[%emt 0:08:23]} 21. Ncd5 {[%emt 0:01:52]} Nxd5 {[%emt 0:00:39]} 22. Nxd5 {[%emt 0:00:37]} Bxb2 {[%emt 0:09:47]} 23. Qxb2 {[%emt 0:02:03]} Rc6 {[%emt 0:14:20]} 24. e5 {[%emt 0:18:01]} bxc4 {[%emt 0:07:43]} 25. Rxc4 {[%emt 0:00:21]} Rac8 {[%emt 0:02:43]} 26. exd6 {[%emt 0:01:35]} Rxd6 {[%emt 0:00:08]} 27. Qc2 {[%emt 0:00:43]} Kg7 {[%emt 0:13:02]} 28. Rxc5 {[%emt 0:00:32]} Rxc5 {[%emt 0:00:25]} 29. Qxc5 {[%emt 0:00:07]} Qd8 {[%emt 0:00:04]} 30. Rd3 {[%emt 0:00:57]} f6 {[%emt 0:00:27]} 31. Qc4 {[%emt 0:00:20]} Qa5 {[%emt 0:00:25]} 32. Nc3 {[%emt 0:00:40]} Rxd3 {[%emt 0:02:00]} 33. Qxd3 {[%emt 0:00:13]} Qa3 {[%emt 0:00:04]} 34. Qe2 {[%emt 0:00:43]} h5 {[%emt 0:00:22]} 35. Nd5 {[%emt 0:00:26]} e5 {[%emt 0:00:36]} 36. Qc2 {[%emt 0:00:25]} g5 {[%emt 0:00:55]} 37. h4 {[%emt 0:04:49]} gxh4 {[%emt 0:01:30]} 38. gxh4 {[%emt 0:00:19]} Kf7 {[%emt 0:00:14]} 39. Qc7+ {[%emt 0:00:49]} Kg6 {[%emt 0:00:08]} 40. Qe7 {[%emt 0:02:12]} Qxa2+ {[%emt 0:00:47]} 41. Kg3 {[%emt 0:00:16]} Qa1 {[%emt 0:01:02]} 42. Qxf6+ {[%emt 0:00:08]} Kh7 {[%emt 0:00:05]} 43. Qf7+ {[%emt 0:00:51]} Kh6 {[%emt 0:00:11]} 44. Qa7 {[%emt 0:00:34]} Kg6 {[%emt 0:02:31]} 45. Qb6+ {[%emt 0:00:22]} Kg7 {[%emt 0:00:07]} 46. Qe3 {[%emt 0:00:34]} Kf7 {[%emt 0:00:07]} 47. Nc3 {[%emt 0:00:23]} Qa5 {[%emt 0:00:48]} 48. Ne4 {[%emt 0:00:38]} Qa1 {[%emt 0:00:06]} 49. Nd6+ {[%emt 0:01:50]} Kf6 {[%emt 0:01:16]} 50. Nc4 {[%emt 0:02:17]} a5 {[%emt 0:00:09]} 51. Qh6+ {[%emt 0:00:42]} Ke7 {[%emt 0:00:22]} 52. Qd6+ {[%emt 0:00:10]} Kf7 {[%emt 0:00:45]} 53. Nxe5+ {[%emt 0:00:13]} 1-0

[Event "Belgrade Spring Open 2021"]
[Site "Belgrade"]
[Date "2021.04.06"]
[Round "6.7"]
[White "Thybo, Jesper Sondergaard"]
[Black "Mitev, Valentin"]
[Result "1/2-1/2"]
[ECO "A35"]
[WhiteElo "2568"]
[BlackElo "2166"]
[Annotator "ChessBase"]
[PlyCount "74"]
[EventDate "2021.04.02"]
[EventType "swiss"]
[EventCountry "SRB"]
[SourceTitle "playchess.com"]
[Source "ChessBase"]
[SourceQuality "1"]
[TimeControl "5400+30"]

1. c4 {[%emt 0:00:00]} c5 {[%emt 0:00:00]} 2. Nf3 {[%emt 0:00:00]} Nf6 {[%emt 0:00:00]} 3. Nc3 {[%emt 0:00:41]} Nc6 {[%emt 0:00:00]} 4. e3 {[%emt 0:01:00]} g6 {[%emt 0:00:00]} 5. d4 {[%emt 0:00:54]} cxd4 {[%emt 0:00:00]} 6. exd4 {[%emt 0:00:04]} d5 {[%emt 0:00:01]} 7. cxd5 {[%emt 0:00:26]} Nxd5 {[%emt 0:00:05]} 8. Qb3 {[%emt 0:00:06]} Nxc3 {[%emt 0:00:04]} 9. Bc4 {[%emt 0:00:29]} Nd5 {[%emt 0:00:13]} 10. Bxd5 {[%emt 0:00:19]} e6 {[%emt 0:00:05]} 11. Bxc6+ {[%emt 0:00:39]} bxc6 {[%emt 0:00:04]} 12. O-O {[%emt 0:00:45]} Be7 {[%emt 0:00:03]} 13. Be3 {[%emt 0:09:30]} Qd5 {[%emt 0:00:17]} 14. Rfc1 {[%emt 0:07:41]} f6 {[%emt 0:00:23]} 15. Nd2 {[%emt 0:01:08]} Kf7 {[%emt 0:00:04]} 16. Qc2 {[%emt 0:01:45]} Bb7 {[%emt 0:00:21]} 17. f3 {[%emt 0:00:44]} g5 {[%emt 0:01:49]} 18. Ne4 {[%emt 0:04:06]} Rad8 {[%emt 0:03:44]} 19. Qf2 {[%emt 0:05:23]} h5 {[%emt 0:05:01]} 20. Nc5 {[%emt 0:03:47]} Bc8 {[%emt 0:00:22]} 21. Rc3 {[%emt 0:04:35]} g4 {[%emt 0:18:45]} 22. Rf1 {[%emt 0:04:22]} Rhg8 {[%emt 0:10:07]} 23. fxg4 {[%emt 0:09:09]} Rxg4 {[%emt 0:00:49]} 24. Nd3 {[%emt 0:00:10]} Ba6 {[%emt 0:03:37]} 25. Ne5+ {[%emt 0:08:00]} Kg7 {[%emt 0:00:05]} 26. Nxg4 {[%emt 0:01:25]} Bxf1 {[%emt 0:00:05]} 27. Nxf6 {[%emt 0:08:08]} Bxf6 {[%emt 0:00:48]} 28. Bh6+ {[%emt 0:02:03]} Kh7 {[%emt 0:00:37]} 29. Be3 {[%emt 0:01:41]} Qxg2+ {[%emt 0:27:05]} 30. Qxg2 {[%emt 0:00:07]} Bxg2 {[%emt 0:00:02]} 31. Kxg2 {[%emt 0:00:14]} Bxd4 {[%emt 0:00:02]} 32. Bxd4 {[%emt 0:00:28]} Rxd4 {[%emt 0:00:01]} 33. Rxc6 {[%emt 0:00:26]} Rd2+ {[%emt 0:00:02]} 34. Kg3 {[%emt 0:00:27]} Rxb2 {[%emt 0:00:08]} 35. Rc7+ {[%emt 0:00:04]} Kg6 {[%emt 0:00:12]} 36. Rxa7 {[%emt 0:00:05]} Kf5 {[%emt 0:00:43]} 37. Rf7+ {[%emt 0:27:39]} Ke5 {[%emt 0:32:46]} 1/2-1/2

[Event "Belgrade Spring Open 2021"]
[Site "Belgrade"]
[Date "2021.04.06"]
[Round "6.9"]
[White "Lundin, Jan"]
[Black "Cobic, Vladimir"]
[Result "1/2-1/2"]
[ECO "D00"]
[WhiteElo "2188"]
[BlackElo "2365"]
[Annotator "ChessBase"]
[PlyCount "118"]
[EventDate "2021.04.02"]
[EventType "swiss"]
[EventCountry "SRB"]
[SourceTitle "playchess.com"]
[Source "ChessBase"]
[SourceQuality "1"]
[TimeControl "5400+30"]

1. d4 {[%emt 0:02:11]} Nf6 {[%emt 0:05:37]} 2. Bg5 {[%emt 0:00:09]} d5 {[%emt 0:03:36]} 3. Nd2 {[%emt 0:01:09]} Nc6 {[%emt 0:05:10]} 4. c3 {[%emt 0:03:22]} Bf5 {[%emt 0:04:38]} 5. e3 {[%emt 0:05:16]} h6 {[%emt 0:04:05]} 6. Bh4 {[%emt 0:03:42]} e6 {[%emt 0:03:07]} 7. Ngf3 {[%emt 0:01:05]} Be7 {[%emt 0:00:07]} 8. Be2 {[%emt 0:01:32]} O-O {[%emt 0:00:11]} 9. O-O {[%emt 0:00:26]} Ne4 {[%emt 0:01:34]} 10. Bxe7 {[%emt 0:01:53]} Qxe7 {[%emt 0:02:57]} 11. Bb5 {[%emt 0:02:59]} Bg4 {[%emt 0:07:16]} 12. Qc2 {[%emt 0:02:33]} Bxf3 {[%emt 0:04:51]} 13. Nxf3 {[%emt 0:00:31]} Nb8 {[%emt 0:13:39]} 14. Bd3 {[%emt 0:02:16]} Nf6 {[%emt 0:06:10]} 15. Ne5 {[%emt 0:02:13]} c5 {[%emt 0:01:05]} 16. Qe2 {[%emt 0:00:48]} Nc6 {[%emt 0:01:05]} 17. f4 {[%emt 0:00:27]} Nd7 {[%emt 0:04:36]} 18. Bc2 {[%emt 0:16:57]} Ncxe5 {[%emt 0:11:33]} 19. fxe5 {[%emt 0:00:51]} f5 {[%emt 0:00:21]} 20. Kh1 {[%emt 0:11:37]} c4 {[%emt 0:01:49]} 21. g4 {[%emt 0:00:34]} fxg4 {[%emt 0:02:20]} 22. Qxg4 {[%emt 0:00:56]} Rxf1+ {[%emt 0:00:06]} 23. Rxf1 {[%emt 0:00:07]} Rf8 {[%emt 0:00:25]} 24. Rf4 {[%emt 0:02:35]} Rxf4 {[%emt 0:12:42]} 25. exf4 {[%emt 0:00:10]} Nf8 {[%emt 0:00:45]} 26. f5 {[%emt 0:10:32]} exf5 {[%emt 0:00:10]} 27. Bxf5 {[%emt 0:00:13]} g5 {[%emt 0:02:14]} 28. h4 {[%emt 0:05:18]} Kg7 {[%emt 0:00:24]} 29. hxg5 {[%emt 0:01:08]} hxg5 {[%emt 0:00:50]} 30. Qh5 {[%emt 0:02:42]} b5 {[%emt 0:00:10]} 31. a3 {[%emt 0:01:16]} a5 {[%emt 0:00:14]} 32. Kg2 {[%emt 0:00:59]} b4 {[%emt 0:01:21]} 33. axb4 {[%emt 0:02:08]} axb4 {[%emt 0:00:01]} 34. Kg3 {[%emt 0:00:42]} bxc3 {[%emt 0:01:04]} 35. bxc3 {[%emt 0:00:07]} Qa3 {[%emt 0:00:38]} 36. Qxg5+ {[%emt 0:16:36]} Kf7 37. e6+ {[%emt 0:00:00]} Ke8 {[%emt 0:00:53]} 38. Bg6+ {[%emt 0:00:00]} Nxg6 {[%emt 0:00:01]} 39. Qxg6+ {[%emt 0:00:00]} Kd8 {[%emt 0:00:04]} 40. Qg8+ {[%emt 0:00:00]} Kc7 {[%emt 0:00:10]} 41. Qf7+ {[%emt 0:00:00]} Kb6 {[%emt 0:00:27]} 42. Kf4 {[%emt 0:00:00]} Qxc3 {[%emt 0:00:44]} 43. Ke5 {[%emt 0:00:00]} Qe3+ {[%emt 0:00:39]} 44. Kxd5 {[%emt 0:00:00]} c3 {[%emt 0:00:07]} 45. e7 {[%emt 0:00:50]} Qg5+ {[%emt 0:00:58]} 46. Ke4 {[%emt 0:03:32]} Qg2+ {[%emt 0:00:25]} 47. Ke5 {[%emt 0:00:26]} Qg3+ {[%emt 0:01:34]} 48. Kd5 {[%emt 0:00:38]} Qg5+ {[%emt 0:00:01]} 49. Ke6 {[%emt 0:00:31]} Qe3+ {[%emt 0:00:06]} 50. Kf5 {[%emt 0:00:13]} c2 {[%emt 0:01:29]} 51. e8=Q {[%emt 0:00:44]} Qxe8 {[%emt 0:00:09]} 52. Qxe8 {[%emt 0:00:06]} c1=Q {[%emt 0:00:05]} 53. Qb8+ {[%emt 0:00:16]} Ka6 {[%emt 0:00:30]} 54. d5 {[%emt 0:00:28]} Qf1+ {[%emt 0:00:10]} 55. Ke6 {[%emt 0:00:19]} Qh3+ {[%emt 0:00:09]} 56. Ke7 {[%emt 0:01:02]} Qh7+ {[%emt 0:00:02]} 57. Kd8 {[%emt 0:00:41]} Qg8+ {[%emt 0:00:46]} 58. Kc7 {[%emt 0:00:12]} Qxb8+ {[%emt 0:00:15]} 59. Kxb8 {[%emt 0:00:05]} Kb6 {[%emt 0:00:04]} 1/2-1/2

[Event "Belgrade Spring Open 2021"]
[Site "Belgrade"]
[Date "2021.04.06"]
[Round "6.10"]
[White "Krasteva, Beloslava"]
[Black "Radojicic, Aleksandar M"]
[Result "1-0"]
[ECO "A57"]
[WhiteElo "2287"]
[BlackElo "2082"]
[Annotator "ChessBase"]
[PlyCount "69"]
[EventDate "2021.04.02"]
[EventType "swiss"]
[EventCountry "SRB"]
[SourceTitle "playchess.com"]
[Source "ChessBase"]
[SourceQuality "1"]
[TimeControl "5400+30"]

1. d4 {[%emt 0:00:00]} Nf6 {[%emt 0:00:00]} 2. c4 {[%emt 0:00:00]} c5 {[%emt 0:00:00]} 3. d5 {[%emt 0:00:00]} b5 {[%emt 0:00:00]} 4. cxb5 {[%emt 0:00:12]} a6 {[%emt 0:00:00]} 5. b6 {[%emt 0:00:12]} Qxb6 {[%emt 0:00:14]} 6. Nc3 {[%emt 0:00:19]} g6 {[%emt 0:00:09]} 7. e4 {[%emt 0:00:23]} d6 {[%emt 0:00:27]} 8. Nf3 {[%emt 0:00:35]} Bg7 {[%emt 0:00:08]} 9. Be2 {[%emt 0:00:23]} O-O {[%emt 0:00:07]} 10. Nd2 {[%emt 0:00:57]} a5 {[%emt 0:00:08]} 11. O-O {[%emt 0:01:50]} Ba6 {[%emt 0:00:07]} 12. Bxa6 {[%emt 0:06:06]} Qxa6 {[%emt 0:08:21]} 13. a4 {[%emt 0:01:15]} Nbd7 {[%emt 0:02:26]} 14. Nb5 {[%emt 0:08:42]} Rfc8 {[%emt 0:02:14]} 15. Nc4 {[%emt 0:05:59]} Nb6 {[%emt 0:08:53]} 16. Nxb6 {[%emt 0:02:44]} Qxb6 {[%emt 0:01:23]} 17. Qe2 {[%emt 0:00:20]} Nd7 {[%emt 0:29:17]} 18. Bg5 {[%emt 0:03:58]} Re8 {[%emt 0:01:41]} 19. Rac1 {[%emt 0:04:01]} Nb8 {[%emt 0:04:14]} 20. b3 {[%emt 0:02:08]} Na6 {[%emt 0:00:48]} 21. Rb1 {[%emt 0:01:54]} Nc7 {[%emt 0:14:07]} 22. Na3 {[%emt 0:00:31]} e6 {[%emt 0:00:11]} 23. Nc4 {[%emt 0:02:27]} Qa6 {[%emt 0:00:18]} 24. Qd3 {[%emt 0:17:05]} exd5 {[%emt 0:13:01]} 25. exd5 {[%emt 0:00:07]} Be5 {[%emt 0:00:06]} 26. Rbd1 {[%emt 0:12:22]} Qb7 {[%emt 0:06:06]} 27. Rfe1 {[%emt 0:00:45]} f6 {[%emt 0:00:13]} 28. Be3 {[%emt 0:01:16]} g5 {[%emt 0:05:20]} 29. h4 {[%emt 0:04:01]} g4 {[%emt 0:00:12]} 30. Bh6 {[%emt 0:02:37]} Re7 {[%emt 0:03:00]} 31. Qf5 {[%emt 0:06:21]} Rae8 {[%emt 0:00:09]} 32. Nxe5 {[%emt 0:16:30]} fxe5 {[%emt 0:02:40]} 33. Re4 {[%emt 0:00:00]} Qxb3 {[%emt 0:00:00]} 34. Rxg4+ {[%emt 0:00:00]} Kh8 {[%emt 0:00:00]} 35. Qf6+ {[%emt 0:00:00]} 1-0

[Event "Belgrade Spring Open 2021"]
[Site "Belgrade"]
[Date "2021.04.07"]
[Round "7.5"]
[White "Pasti, Aron"]
[Black "Milosevic, Milos"]
[Result "0-1"]
[ECO "C11"]
[WhiteElo "2231"]
[BlackElo "2334"]
[Annotator "RC"]
[PlyCount "80"]
[EventDate "2021.04.02"]
[EventType "swiss"]
[EventCountry "SRB"]
[SourceTitle "playchess.com"]
[Source "ChessBase"]
[SourceQuality "1"]
[TimeControl "5400+30"]

1. e4 {[%emt 0:00:00]} e6 {[%emt 0:00:00]} 2. d4 {[%emt 0:00:00]} d5 {[%emt 0:00:00]} 3. Nc3 {[%emt 0:00:00]} Nf6 {[%emt 0:00:00]} 4. e5 {[%emt 0:05:27]} Nfd7 {[%emt 0:00:00]} 5. Nce2 {[%emt 0:00:07]} c5 {[%emt 0:00:00]} 6. c3 {[%emt 0:00:04]} Nc6 {[%emt 0:00:00]} 7. f4 {[%emt 0:00:06]} Be7 {[%emt 0:00:04]} 8. Nf3 {[%emt 0:00:11]} O-O {[%emt 0:00:04]} 9. g3 {[%emt 0:00:07]} b5 {[%emt 0:00:17]} 10. Bh3 {[%emt 0:03:12]} b4 {[%emt 0:00:04]} 11. O-O {[%emt 0:00:09]} bxc3 {[%emt 0:00:06]} 12. bxc3 {[%emt 0:00:03]} cxd4 {[%emt 0:00:06]} 13. cxd4 {[%emt 0:00:44]} Nb6 {[%emt 0:00:05]} 14. g4 {[%emt 0:02:28]} f6 {[%emt 0:00:04]} 15. exf6 {[%emt 0:01:56]} Rxf6 {[%emt 0:01:34]} 16. g5 {[%emt 0:01:38]} Rf8 {[%emt 0:00:06]} 17. Ng3 {[%emt 0:02:56]} Nc4 {[%emt 0:00:05]} 18. Qe2 {[%emt 0:14:44]} Kh8 {[%emt 0:00:48]} 19. Rd1 {[%emt 0:11:46]} Qb6 {[%emt 0:05:07]} 20. Nf1 {[%emt 0:21:07]} e5 {[%emt 0:19:58]} 21. Bxc8 {[%emt 0:09:00]} exd4 {[%emt 0:03:38]} 22. Qe6 {[%emt 0:09:54]} Raxc8 {[%emt 0:01:20]} 23. Qxd5 {[%emt 0:00:08]} Nb4 {[%emt 0:04:27]} 24. Qe4 {[%emt 0:00:32]} d3+ {[%emt 0:03:08]} 25. Kg2 {[%emt 0:00:11]} Nc2 {[%emt 0:05:18]} 26. Qxe7 {[%emt 0:05:00]} Nxa1 {[%emt 0:07:43]} 27. Rxd3 {[%emt 0:01:24]} Rce8 {[%emt 0:01:53]} 28. Qd7 {[%emt 0:00:05]} Nc2 {[%emt 0:18:00]} 29. Ng3 {[%emt 0:06:54]} Ne1+ {[%emt 0:18:26]} 30. Nxe1 {[%emt 0:00:08]} Rxe1 {[%emt 0:00:06]} 31. Bd2 {[%emt 0:03:21]} Qg1+ {[%emt 0:10:39]} 32. Kh3 {[%emt 0:00:22]} Nxd2 {[%emt 0:01:15]} 33. Rxd2 {[%emt 0:00:25]} Re3 {[%emt 0:00:45]} 34. Qb5 {[%emt 0:02:14]} Rf3 {[%emt 0:01:13]} 35. f5 {[%emt 0:00:32]} Qe3 {[%emt 0:00:34]} 36. Re2 {[%emt 0:00:33]} Qxg5 {[%emt 0:00:11]} 37. Kg2 {[%emt 0:00:29]} Rc3 {[%emt 0:00:43]} 38. Qb4 {[%emt 0:00:30]} Rcc8 {[%emt 0:00:10]} 39. Qd4 {[%emt 0:00:15]} Rc7 {[%emt 0:00:59]} 40. Re4 {[%emt 0:00:43]} Rc2+ {[%emt 0:00:23]} 0-1

[Event "Belgrade Spring Open 2021"]
[Site "Belgrade"]
[Date "2021.04.07"]
[Round "7.10"]
[White "Janjic, Stefan"]
[Black "Todorovic, Goran M"]
[Result "1/2-1/2"]
[ECO "D34"]
[WhiteElo "2176"]
[BlackElo "2406"]
[Annotator "RC"]
[PlyCount "65"]
[EventDate "2021.04.02"]
[EventType "swiss"]
[EventCountry "SRB"]
[SourceTitle "playchess.com"]
[Source "ChessBase"]
[SourceQuality "1"]
[TimeControl "5400+30"]

1. d4 {[%emt 0:00:00]} d5 {[%emt 0:00:00]} 2. c4 {[%emt 0:00:09]} e6 {[%emt 0:00:00]} 3. Nc3 {[%emt 0:00:09]} c5 {[%emt 0:01:34]} 4. cxd5 {[%emt 0:00:48]} exd5 {[%emt 0:00:06]} 5. Nf3 {[%emt 0:00:25]} Nc6 {[%emt 0:00:11]} 6. g3 {[%emt 0:00:11]} Nf6 {[%emt 0:00:11]} 7. Bg2 {[%emt 0:00:24]} Be7 {[%emt 0:00:23]} 8. O-O {[%emt 0:00:12]} O-O {[%emt 0:00:13]} 9. dxc5 {[%emt 0:00:21]} d4 {[%emt 0:04:07]} 10. Na4 {[%emt 0:00:04]} Bf5 {[%emt 0:00:07]} 11. b4 {[%emt 0:05:45]} Nxb4 {[%emt 0:12:52]} 12. Nxd4 {[%emt 0:00:57]} Be4 {[%emt 0:00:23]} 13. Bxe4 {[%emt 0:27:17]} Nxe4 {[%emt 0:02:24]} 14. Nf5 {[%emt 0:10:22]} Bf6 {[%emt 0:13:41]} 15. Qxd8 {[%emt 0:10:27]} Rfxd8 {[%emt 0:00:12]} 16. Rb1 {[%emt 0:00:40]} Na6 {[%emt 0:04:25]} 17. Rxb7 {[%emt 0:03:41]} Naxc5 {[%emt 0:00:44]} 18. Nxc5 {[%emt 0:00:22]} Nxc5 {[%emt 0:00:06]} 19. Rc7 {[%emt 0:01:39]} Ne4 {[%emt 0:06:39]} 20. Ne7+ {[%emt 0:06:53]} Kh8 {[%emt 0:11:44]} 21. Nc6 {[%emt 0:02:10]} Rdc8 {[%emt 0:00:06]} 22. Rxc8+ {[%emt 0:01:59]} Rxc8 {[%emt 0:00:02]} 23. Nxa7 {[%emt 0:00:24]} Rc2 {[%emt 0:00:14]} 24. Be3 {[%emt 0:02:31]} Nc3 {[%emt 0:04:51]} 25. a3 {[%emt 0:05:57]} h5 {[%emt 0:01:41]} 26. Kg2 {[%emt 0:02:16]} Rxe2 {[%emt 0:05:05]} 27. Nc6 {[%emt 0:02:17]} Ra2 {[%emt 0:07:05]} 28. Bd4 {[%emt 0:04:02]} Bxd4 {[%emt 0:00:38]} 29. Nxd4 {[%emt 0:00:04]} Rxa3 {[%emt 0:00:07]} 30. Rc1 {[%emt 0:00:47]} g6 {[%emt 0:00:26]} 31. h4 {[%emt 0:01:02]} Kg7 {[%emt 0:00:03]} 32. Rc2 {[%emt 0:00:36]} Ne4 {[%emt 0:00:16]} 33. Nf3 {[%emt 0:00:50]} 1/2-1/2

[Event "Belgrade Spring Open 2021"]
[Site "Belgrade"]
[Date "2021.04.08"]
[Round "8.3"]
[White "Milosevic, Milos"]
[Black "Sturt, Raven"]
[Result "0-1"]
[ECO "B90"]
[WhiteElo "2334"]
[BlackElo "2490"]
[Annotator "ChessBase"]
[PlyCount "60"]
[EventDate "2021.04.02"]
[EventType "swiss"]
[EventCountry "SRB"]
[SourceTitle "playchess.com"]
[Source "ChessBase"]
[SourceQuality "1"]
[TimeControl "5400+30"]

1. e4 {[%emt 0:00:00]} c5 {[%emt 0:00:00]} 2. Nc3 {[%emt 0:00:00]} d6 {[%emt 0:00:00]} 3. Nge2 {[%emt 0:01:43]} Nf6 {[%emt 0:00:00]} 4. d4 {[%emt 0:00:08]} cxd4 {[%emt 0:00:00]} 5. Nxd4 {[%emt 0:00:02]} a6 {[%emt 0:00:00]} 6. h3 {[%emt 0:03:46]} e5 {[%emt 0:00:03]} 7. Nde2 {[%emt 0:00:05]} h5 {[%emt 0:00:05]} 8. Bg5 {[%emt 0:00:06]} Be6 {[%emt 0:00:21]} 9. Bxf6 {[%emt 0:01:14]} Qxf6 {[%emt 0:00:03]} 10. Nd5 {[%emt 0:00:05]} Qd8 {[%emt 0:00:14]} 11. Nec3 {[%emt 0:00:14]} Nd7 {[%emt 0:02:00]} 12. Bc4 {[%emt 0:04:31]} Rc8 {[%emt 0:03:48]} 13. Qe2 {[%emt 0:01:08]} g6 {[%emt 0:21:13]} 14. O-O {[%emt 0:02:14]} Bh6 {[%emt 0:03:31]} 15. Rad1 {[%emt 0:00:48]} O-O {[%emt 0:06:50]} 16. b4 {[%emt 0:07:28]} Nb8 {[%emt 0:06:14]} 17. Bb3 {[%emt 0:07:30]} Nc6 {[%emt 0:00:50]} 18. Qd3 {[%emt 0:01:46]} Nd4 {[%emt 0:13:03]} 19. Ne2 {[%emt 0:02:42]} Nxb3 {[%emt 0:01:56]} 20. cxb3 {[%emt 0:02:11]} Bxd5 {[%emt 0:06:00]} 21. Qxd5 {[%emt 0:00:40]} Rc2 {[%emt 0:00:05]} 22. Rfe1 {[%emt 0:07:55]} Qb6 {[%emt 0:02:57]} 23. a3 {[%emt 0:01:43]} Rd8 {[%emt 0:01:30]} 24. Rd3 {[%emt 0:01:44]} Rd7 {[%emt 0:02:03]} 25. Rg3 {[%emt 0:18:02]} Kg7 {[%emt 0:00:57]} 26. Qd3 {[%emt 0:01:04]} Ra2 {[%emt 0:03:31]} 27. Qf3 {[%emt 0:07:43]} Rxa3 {[%emt 0:00:49]} 28. Nc3 {[%emt 0:08:30]} Qxb4 {[%emt 0:03:35]} 29. Rd1 {[%emt 0:00:14]} Qxb3 {[%emt 0:05:17]} 30. Qf5 {[%emt 0:02:34]} Qe6 {[%emt 0:00:11]} 0-1

[Event "Belgrade Spring Open 2021"]
[Site "Belgrade"]
[Date "2021.04.08"]
[Round "8.8"]
[White "Jandric, Damjan"]
[Black "Thybo, Jesper Sondergaard"]
[Result "0-1"]
[ECO "B51"]
[WhiteElo "2187"]
[BlackElo "2568"]
[Annotator "ChessBase"]
[PlyCount "66"]
[EventDate "2021.04.02"]
[EventType "swiss"]
[EventCountry "SRB"]
[SourceTitle "playchess.com"]
[Source "ChessBase"]
[SourceQuality "1"]
[TimeControl "5400+30"]

1. e4 {[%emt 0:00:00]} c5 {[%emt 0:00:00]} 2. Nf3 {[%emt 0:00:00]} d6 {[%emt 0:00:00]} 3. Bb5+ {[%emt 0:02:51]} Nd7 {[%emt 0:00:50]} 4. O-O {[%emt 0:00:20]} a6 {[%emt 0:00:15]} 5. Bxd7+ {[%emt 0:00:46]} Bxd7 {[%emt 0:00:06]} 6. Re1 {[%emt 0:01:53]} e6 {[%emt 0:03:24]} 7. d3 {[%emt 0:03:53]} Ne7 {[%emt 0:03:32]} 8. b3 {[%emt 0:03:42]} g6 {[%emt 0:18:58]} 9. d4 {[%emt 0:24:57]} Bg7 {[%emt 0:01:06]} 10. Bb2 {[%emt 0:00:05]} O-O {[%emt 0:01:52]} 11. Nbd2 {[%emt 0:11:17]} b5 {[%emt 0:07:30]} 12. e5 {[%emt 0:10:49]} cxd4 {[%emt 0:03:05]} 13. exd6 {[%emt 0:12:50]} Nc6 {[%emt 0:05:04]} 14. Ne4 {[%emt 0:06:42]} Qb6 {[%emt 0:01:01]} 15. b4 {[%emt 0:02:23]} Rad8 {[%emt 0:04:26]} 16. Qd2 {[%emt 0:00:32]} e5 {[%emt 0:09:30]} 17. c3 {[%emt 0:00:07]} Bg4 {[%emt 0:02:05]} 18. Nfg5 {[%emt 0:07:32]} h6 {[%emt 0:03:45]} 19. h3 {[%emt 0:00:07]} Bc8 {[%emt 0:00:26]} 20. Nf3 {[%emt 0:00:58]} f5 {[%emt 0:00:49]} 21. Nc5 {[%emt 0:00:21]} Rxd6 {[%emt 0:01:02]} 22. cxd4 {[%emt 0:00:08]} e4 {[%emt 0:00:47]} 23. d5 {[%emt 0:01:07]} Bxb2 {[%emt 0:01:28]} 24. Qxb2 {[%emt 0:00:02]} Rxd5 {[%emt 0:00:15]} 25. Qb3 {[%emt 0:03:32]} Rfd8 {[%emt 0:03:00]} 26. Rad1 {[%emt 0:01:42]} Ne7 {[%emt 0:00:08]} 27. Rxd5 {[%emt 0:00:51]} Rxd5 {[%emt 0:00:42]} 28. Nxe4 {[%emt 0:02:05]} fxe4 {[%emt 0:00:28]} 29. Rxe4 {[%emt 0:00:07]} Be6 {[%emt 0:00:50]} 30. Nd4 {[%emt 0:00:42]} Re5 {[%emt 0:02:08]} 31. Nxe6 {[%emt 0:00:30]} Rxe4 {[%emt 0:00:09]} 32. Nc5+ {[%emt 0:00:15]} Rc4 {[%emt 0:00:05]} 33. Qe3 {[%emt 0:01:01]} Qd6 {[%emt 0:27:44]} 0-1